fUST/lending_fUST_20250816
["ID","MTS","AMOUNT","RATE_DAILY","PERIOD"]
[379625978,1755349844471,-1808.31,0.00021917,3]
[379625979,1755349844482,-480.0,0.00021917,3]
[379625980,1755349844491,-460.0,0.00021917,3]
[379625981,1755349844500,-480.0,0.00021917,3]
[379625982,1755349844510,-461.7654605,0.00021917,3]
[379625983,1755349844519,-1146.67,0.00021917,3]
[379625984,1755349844528,-480.0,0.00021917,3]
[379625985,1755349844537,-480.0,0.00021917,3]
[379625986,1755349844547,-460.50366611,0.00021917,3]
[379625987,1755349844556,-480.0,0.00021917,3]
[379625988,1755349844566,-480.0,0.00021917,3]
[379625989,1755349844575,-480.0,0.00021917,3]
[379625990,1755349844585,-1574.37,0.00021917,3]
[379625991,1755349844595,-255.73310218,0.00021917,3]
[379625992,1755349844604,-460.14822663,0.00021917,3]
[379625993,1755349844614,-480.0,0.00021917,3]
[379625994,1755349844623,-179.09946108,0.00021917,3]
[379625995,1755349844632,-480.0,0.00021917,3]
[379625996,1755349844643,-716.42,0.00021917,3]
[379625997,1755349844653,-480.0,0.00021917,3]
[379625998,1755349844663,-1549.41,0.00021917,3]
[379625999,1755349844671,-480.0,0.00021917,3]
[379626000,1755349844680,-480.0,0.00021917,3]
[379626001,1755349844689,-480.0,0.00021917,3]
[379626002,1755349844698,-480.0,0.00021917,3]
[379626003,1755349844708,-164.92780934,0.00021917,3]
[379626004,1755349844718,-891.71,0.00021917,3]
[379626005,1755349844727,-480.0,0.00021917,3]
[379626006,1755349844736,-480.0,0.00021917,3]
[379626007,1755349844745,-480.0,0.00021917,3]
[379626008,1755349844754,-620.49,0.00021917,3]
[379626009,1755349844763,-480.0,0.00021917,3]
[379626010,1755349844773,-1485.98,0.00021917,3]
[379626011,1755349844784,-480.0,0.00021917,3]
[379626012,1755349844793,-480.0,0.00021917,3]
[379626013,1755349844803,-460.0,0.00021917,3]
[379626014,1755349844813,-8906.36,0.00021917,3]
[379626015,1755349844822,-480.0,0.00021917,3]
[379626016,1755349844830,-460.0,0.00021917,3]
[379626017,1755349844839,-480.0,0.00021917,3]
[379626018,1755349844849,-461.36829929,0.00021917,3]
[379626019,1755349844858,-480.0,0.00021917,3]
[379626020,1755349844868,-173.01088187,0.00021917,3]
[379626021,1755349844877,-480.0,0.00021917,3]
[379626022,1755349844886,-480.0,0.00021917,3]
[379626023,1755349844896,-639.12,0.00021917,3]
[379626024,1755349844905,-460.0,0.00021917,3]
[379626025,1755349844914,-466.56388493,0.00021917,3]
[379626026,1755349844923,-480.0,0.00021917,3]
[379626027,1755349844933,-841.7,0.00021917,3]
[379626028,1755349844942,-819.77,0.00021917,3]
[379626029,1755349844951,-1317.03,0.00021917,3]
[379626030,1755349844961,-718.06,0.00021917,3]
[379626031,1755349844970,-480.0,0.00021917,3]
[379626032,1755349844980,-1046.17,0.00021917,3]
[379626033,1755349844989,-480.0,0.00021917,3]
[379626034,1755349844998,-462.1417622,0.00021917,3]
[379626035,1755349845008,-461.48483732,0.00021917,3]
[379626036,1755349845017,-1119.19,0.00021917,3]
[379626037,1755349845026,-480.0,0.00021917,3]
[379626038,1755349845035,-521.14848999,0.00021917,3]
[379626039,1755349845045,-462.07358749,0.00021917,3]
[379626040,1755349845054,-480.0,0.00021917,3]
[379626041,1755349845063,-1254.61,0.00021917,3]
[379626042,1755349845073,-480.0,0.00021917,3]
[379626043,1755349845082,-480.0,0.00021917,3]
[379626044,1755349845092,-480.0,0.00021917,3]
[379626045,1755349845101,-480.0,0.00021917,3]
[379626046,1755349845111,-480.0,0.00021917,3]
[379626047,1755349845120,-480.0,0.00021917,3]
[379626048,1755349845129,-480.0,0.00021917,3]
[379626049,1755349845139,-480.0,0.00021917,3]
[379626050,1755349845148,-460.0,0.00021917,3]
[379626051,1755349845157,-480.0,0.00021917,3]
[379626052,1755349845166,-11999.33,0.00021917,3]
[379626053,1755349845175,-480.0,0.00021917,3]
[379626054,1755349845185,-2937.9,0.00021917,3]
[379626055,1755349845194,-480.0,0.00021917,3]
[379626056,1755349845204,-480.0,0.00021917,3]
[379626057,1755349845213,-480.0,0.00021917,3]
[379626058,1755349845222,-480.0,0.00021917,3]
[379626059,1755349845232,-480.0,0.00021917,3]
[379626060,1755349845242,-1366.59,0.00021917,3]
[379626061,1755349845252,-460.0,0.00021917,3]
[379626062,1755349845261,-298.73074238,0.00021917,3]
[379626063,1755349845270,-536.49,0.00021917,3]
[379626064,1755349845280,-480.0,0.00021917,3]
[379626065,1755349845289,-600.26,0.00021917,3]
[379626066,1755349845299,-480.0,0.00021917,3]
[379626067,1755349845312,-781.67,0.00021917,3]
[379626068,1755349845322,-4836.78,0.00021917,3]
[379626069,1755349845332,-480.0,0.00021917,3]
[379626070,1755349845341,-460.0,0.00021917,3]
[379626071,1755349845353,-480.0,0.00021917,3]
[379626072,1755349845362,-480.0,0.00021917,3]
[379626073,1755349845371,-480.0,0.00021917,3]
[379626074,1755349845381,-330.60084364,0.00021917,3]
[379626075,1755349845390,-480.0,0.00021917,3]
[379626076,1755349845400,-13906.26,0.00021917,3]
[379626077,1755349845410,-480.0,0.00021917,3]
[379626078,1755349845419,-480.0,0.00021917,3]
[379626079,1755349845428,-480.0,0.00021917,3]
[379626080,1755349845438,-480.0,0.00021917,3]
[379626081,1755349845447,-480.0,0.00021917,3]
[379626082,1755349845457,-480.0,0.00021917,3]
[379626083,1755349845467,-1092.9,0.00021917,3]
[379626084,1755349845477,-460.92206159,0.00021917,3]
[379626085,1755349845486,-480.0,0.00021917,3]
[379626086,1755349845495,-480.0,0.00021917,3]
[379626087,1755349845504,-480.0,0.00021917,3]
[379626088,1755349845514,-480.0,0.00021917,3]
[379626089,1755349845523,-480.0,0.00021917,3]
[379626090,1755349845532,-461.81628262,0.00021917,3]
[379626091,1755349845542,-1621.37,0.00021917,3]
[379626092,1755349845551,-2802.78,0.00021917,3]
[379626093,1755349845561,-971.16,0.00021917,3]
[379626094,1755349845570,-460.0,0.00021917,3]
[379626095,1755349845580,-1200.42,0.00021917,3]
[379626096,1755349845589,-1663.58,0.00021917,3]
[379626097,1755349845598,-1003.66922973,0.00021917,3]
[379626098,1755349845607,-480.0,0.00021917,3]
[379626099,1755349845617,-460.0,0.00021917,3]
[379626100,1755349845627,-464.79285501,0.00021917,3]
[379626101,1755349845636,-480.0,0.00021917,3]
[379626102,1755349845645,-351.91730086,0.00021917,3]
[379626103,1755349845654,-1608.75,0.00021917,3]
[379626104,1755349845663,-480.0,0.00021917,3]
[379626105,1755349845672,-480.0,0.00021917,3]
[379626106,1755349845682,-480.0,0.00021917,3]
[379626107,1755349845691,-480.0,0.00021917,3]
[379626108,1755349845700,-569.52717049,0.00021917,3]
[379626109,1755349845709,-480.0,0.00021917,3]
[379626110,1755349845718,-480.0,0.00021917,3]
[379626111,1755349845729,-1101.05,0.00021917,3]
[379626112,1755349845738,-610.49129169,0.00021917,3]
[379626113,1755349845747,-945.36,0.00021917,3]
[379626114,1755349845756,-480.0,0.00021917,3]
[379626115,1755349845765,-3997.99,0.00021917,3]
[379626116,1755349845775,-460.0,0.00021917,3]
[379626117,1755349845784,-480.0,0.00021917,3]
[379626118,1755349845794,-480.0,0.00021917,3]
[379626119,1755349845803,-198.76266674,0.00021917,3]
[379626120,1755349845813,-480.0,0.00021917,3]
[379626121,1755349845823,-480.0,0.00021917,3]
[379626122,1755349845832,-1000.12,0.00021917,3]
[379626123,1755349845841,-480.0,0.00021917,3]
[379626124,1755349845851,-1382.52,0.00021917,3]
[379626125,1755349845860,-480.0,0.00021917,3]
[379626126,1755349845870,-480.0,0.00021917,3]
[379626128,1755349845998,-480.0,0.00021917,3]
[379626130,1755349846008,-480.0,0.00021917,3]
[379626132,1755349846018,-423.40433545,0.00021917,3]
[379626134,1755349846042,-480.0,0.00021917,3]
[379626135,1755349846079,-480.0,0.00021917,3]
[379626139,1755349846103,-499.9178857,0.00021917,3]
[379626141,1755349846114,-480.0,0.00021917,3]
[379626144,1755349846125,-1379.76,0.00021917,3]
[379626146,1755349846135,-460.0,0.00021917,3]
[379626148,1755349846144,-3560.84,0.00021917,3]
[379626150,1755349846153,-460.0,0.00021917,3]
[379626152,1755349846163,-480.0,0.00021917,3]
[379626155,1755349846173,-480.0,0.00021917,3]
[379626159,1755349846183,-480.0,0.00021917,3]
[379626164,1755349846203,-480.0,0.00021917,3]
[379626168,1755349846214,-480.0,0.00021917,3]
[379626172,1755349846225,-460.0,0.00021917,3]
[379626175,1755349846236,-480.0,0.00021917,3]
[379626178,1755349846246,-506.66,0.00021917,3]
[379626181,1755349846259,-511.73985363,0.00021917,3]
[379626182,1755349846269,-480.0,0.00021917,3]
[379626183,1755349846280,-480.0,0.00021917,3]
[379626184,1755349846290,-480.0,0.00021917,3]
[379626186,1755349846300,-561.79,0.00021917,3]
[379626188,1755349846313,-480.0,0.00021917,3]
[379626190,1755349846323,-480.0,0.00021917,3]
[379626192,1755349846334,-460.0,0.00021917,3]
[379626194,1755349846343,-7773.51,0.00021917,3]
[379626195,1755349846354,-480.0,0.00021917,3]
[379626196,1755349846363,-215.68093138,0.00021917,3]
[379626197,1755349846373,-460.0,0.00021917,3]
[379626198,1755349846383,-480.0,0.00021917,3]
[379626199,1755349846393,-480.0,0.00021917,3]
[379626200,1755349846404,-480.0,0.00021917,3]
[379626201,1755349846413,-480.0,0.00021917,3]
[379626202,1755349846423,-1224.21,0.00021917,3]
[379626203,1755349846433,-480.0,0.00021917,3]
[379626204,1755349846443,-480.0,0.00021917,3]
[379626205,1755349846453,-1364.63,0.00021917,3]
[379626206,1755349846463,-460.0,0.00021917,3]
[379626207,1755349846472,-1335.89,0.00021917,3]
[379626208,1755349846484,-480.0,0.00021917,3]
[379626209,1755349846494,-1254.0,0.00021917,3]
[379626210,1755349846504,-486.43495561,0.00021917,3]
[379626211,1755349846514,-460.0,0.00021917,3]
[379626212,1755349846524,-480.0,0.00021917,3]
[379626213,1755349846535,-461.65607098,0.00021917,3]
[379626214,1755349846545,-480.0,0.00021917,3]
[379626215,1755349846556,-1024.5,0.00021917,3]
[379626216,1755349846566,-480.0,0.00021917,3]
[379626217,1755349846576,-480.0,0.00021917,3]
[379626218,1755349846587,-480.0,0.00021917,3]
[379626219,1755349846597,-462.71591904,0.00021917,3]
[379626220,1755349846607,-634.22,0.00021917,3]
[379626221,1755349846617,-480.0,0.00021917,3]
[379626222,1755349846626,-153.0,0.00021918,2]
[379626223,1755349846636,-153.0,0.00021918,2]
[379626224,1755349846645,-153.0,0.00021918,2]
[379626225,1755349846654,-153.0,0.00021918,2]
[379626226,1755349846664,-153.0,0.00021918,2]
[379626227,1755349846674,-200.0,0.00021918,2]
[379626228,1755349846686,-4581.34764792,0.00021932,2]
[379626229,1755349846703,-2117.11792945,0.00021932,2]
[379626230,1755349846713,-150000.0,0.00021932,2]
[379626231,1755349846723,-2156.98,0.00021972,3]
[379626232,1755349846735,-2156.98,0.00021972,3]
[379626233,1755349846745,-2156.98,0.00021972,3]
[379626234,1755349846754,-2156.98,0.00021972,3]
[379626235,1755349846765,-2156.98,0.00021972,3]
[379626236,1755349846775,-2156.98,0.00021972,3]
[379626237,1755349846785,-2156.98,0.00021972,3]
[379626238,1755349846794,-2156.98,0.00021972,3]
[379626239,1755349846803,-2156.98,0.00021972,3]
[379626240,1755349846813,-2156.98,0.00021972,3]
[379626241,1755349846822,-2156.98,0.00021972,3]
[379626242,1755349846832,-2156.98,0.00021972,3]
[379626244,1755349846841,-2156.98,0.00021972,3]
[379626246,1755349846850,-2156.98,0.00021972,3]
[379626248,1755349846860,-2156.98,0.00021972,3]
[379626250,1755349846870,-2156.98,0.00021972,3]
[379626252,1755349846879,-2156.98,0.00021972,3]
[379626254,1755349846889,-2156.98,0.00021972,3]
[379626256,1755349846898,-2156.98,0.00021972,3]
[379626258,1755349846908,-2156.98,0.00021972,3]
[379626260,1755349846917,-2156.98,0.00021972,3]
[379626261,1755349846927,-2156.98,0.00021972,3]
[379626262,1755349846937,-2156.98,0.00021972,3]
[379626263,1755349846947,-2157.07279647,0.00021972,3]
[379626264,1755349846956,-500.0,0.00021973,2]
[379626265,1755349846965,-501.05062111,0.00021973,2]
[379626266,1755349846974,-500.0,0.00021973,2]
[379626267,1755349846985,-500.0,0.00021973,2]
[379626268,1755349846995,-500.0,0.00021973,2]
[379626269,1755349847005,-500.0,0.00021973,2]
[379626270,1755349847014,-500.0,0.00021973,2]
[379626271,1755349847024,-500.63349668,0.00021973,2]
[379626272,1755349847033,-151.0,0.00021973,7]
[379626273,1755349847042,-165.63,0.00022,7]
[379626274,1755349847052,-151.0,0.00022,7]
[379626275,1755349847061,-151.0,0.00022,7]
[379626276,1755349847075,-151.0,0.00022,7]
[379626277,1755349847085,-151.0,0.00022,7]
[379626278,1755349847094,-190.978845,0.00022,7]
[379626279,1755349847104,-190.978845,0.00022,7]
[379626280,1755349847113,-170.531394,0.00022,7]
[379626281,1755349847122,-170.531394,0.00022,7]
[379626282,1755349847131,-31450.18,0.00022,7]
[379626283,1755349847141,-8941.19,0.00022,7]
[379626284,1755349847150,-33472.50711058,0.00022,2]
[379626285,1755349847386,-28368.09288942,0.00022,2]
[379626286,1755349847396,-164.0,0.00022,2]
[379626287,1755349847405,-168.0,0.00022,2]
[379626288,1755349847414,-462.1417622,0.00022,7]
[379626289,1755349847424,-215.68093138,0.00022,7]
[379626291,1755349847434,-169.0,0.00022,2]
[379626292,1755349847443,-250.022823,0.0002201,5]
[379626294,1755349847452,-884.7,0.00022037,3]
[379626295,1755349847461,-13220.03861921,0.00022047,2]
[379626296,1755349847470,-206.0,0.00022077,2]
[379626297,1755349847480,-1000.0,0.00022091,2]
[379626298,1755349847490,-594.0071978,0.00022091,2]
[379626299,1755349847500,-413.41,0.000221,2]
[379626300,1755349847509,-204.42571016,0.00022173,2]
[379626301,1755349847518,-500.0,0.00022173,2]
[379626302,1755349847528,-500.0,0.00022173,2]
[379626303,1755349847537,-552.91855651,0.00022173,2]
[379626304,1755349847547,-480.0,0.0002219,3]
[379626305,1755349847556,-461.46509219,0.0002219,3]
[379626306,1755349847564,-480.0,0.0002219,3]
[379626307,1755349847574,-480.0,0.0002219,3]
[379626308,1755349847583,-480.0,0.0002219,3]
[379626309,1755349847592,-480.0,0.0002219,3]
[379626310,1755349847602,-460.0,0.0002219,3]
[379626311,1755349847612,-538.65908821,0.0002219,3]
[379626312,1755349847621,-501.37747728,0.0002219,2]
[379626313,1755349847631,-460.0,0.0002219,3]
[379626314,1755349847640,-460.0,0.0002219,3]
[379626315,1755349847649,-1683.56750861,0.00022191,7]
[379626316,1755349847659,-4087.48139,0.00022191,7]
[379626317,1755349847667,-4087.48139,0.00022191,7]
[379626318,1755349847676,-4087.48139,0.00022191,7]
[379626319,1755349847685,-4087.48139,0.00022191,7]
[379626320,1755349847695,-153.582969,0.00022191,7]
[379626321,1755349847705,-151.0,0.00022191,7]
[379626322,1755349847715,-151.0,0.00022191,7]
[379626323,1755349847725,-151.0,0.00022191,7]
[379626324,1755349847736,-151.0,0.00022191,7]
[379626325,1755349847747,-151.0,0.00022191,7]
[379626326,1755349847757,-151.0,0.00022191,7]
[379626327,1755349847767,-151.0,0.00022191,7]
[379626328,1755349847776,-151.0,0.00022191,7]
[379626329,1755349847785,-480.0,0.00022191,3]
[379626330,1755349847796,-480.0,0.00022191,3]
[379626331,1755349847805,-538.50851829,0.00022191,3]
[379626332,1755349847815,-460.0,0.00022191,3]
[379626333,1755349847823,-440.0,0.00022191,3]
[379626334,1755349847832,-151.0,0.00022191,7]
[379626335,1755349847842,-151.0,0.00022191,7]
[379626336,1755349847851,-151.0,0.00022191,7]
[379626337,1755349847860,-460.0,0.00022191,3]
[379626338,1755349847869,-151.0,0.00022191,7]
[379626339,1755349847878,-151.0,0.00022191,7]
[379626340,1755349847888,-151.0,0.00022191,7]
[379626341,1755349847897,-480.0,0.00022191,3]
[379626342,1755349847907,-480.0,0.00022191,3]
[379626343,1755349847916,-190.978845,0.00022191,7]
[379626344,1755349847925,-480.0,0.00022191,3]
[379626345,1755349847935,-190.978845,0.00022191,7]
[379626346,1755349847944,-190.978845,0.00022191,7]
[379626347,1755349847954,-190.978845,0.00022191,7]
[379626348,1755349847964,-190.978845,0.00022191,7]
[379626349,1755349847973,-190.978845,0.00022191,7]
[379626350,1755349847983,-445.24592914,0.00022191,3]
[379626351,1755349847993,-440.0,0.00022191,3]
[379626352,1755349848003,-480.0,0.00022191,3]
[379626353,1755349848012,-480.0,0.00022191,3]
[379626354,1755349848021,-440.0,0.00022191,3]
[379626355,1755349848164,-170.531394,0.00022191,7]
[379626356,1755349848174,-170.531394,0.00022191,7]
[379626357,1755349848184,-170.531394,0.00022191,7]
[379626358,1755349848193,-170.531394,0.00022191,7]
[379626359,1755349848203,-170.531394,0.00022191,7]
[379626360,1755349848212,-170.531394,0.00022191,7]
[379626361,1755349848221,-480.0,0.00022191,3]
[379626362,1755349848232,-440.0,0.00022191,3]
[379626363,1755349848241,-480.0,0.00022191,3]
[379626364,1755349848251,-914.09,0.00022191,3]
[379626365,1755349848260,-480.0,0.00022191,3]
[379626366,1755349848272,-440.0,0.00022191,3]
[379626367,1755349848283,-480.0,0.00022191,3]
[379626368,1755349848300,-500.0,0.00022191,3]
[379626369,1755349848320,-480.0,0.00022191,3]
[379626370,1755349848340,-480.0,0.00022191,3]
[379626371,1755349848361,-480.0,0.00022191,3]
[379626372,1755349848376,-444.25395285,0.00022191,3]
[379626373,1755349848385,-480.0,0.00022191,3]
[379626374,1755349848395,-480.0,0.00022191,3]
[379626375,1755349848404,-480.0,0.00022191,3]
[379626376,1755349848414,-481.48,0.00022191,3]
[379626377,1755349848424,-480.0,0.00022191,3]
[379626378,1755349848434,-727.67,0.00022191,3]
[379626379,1755349848444,-480.0,0.00022191,3]
[379626380,1755349848453,-480.0,0.00022191,3]
[379626381,1755349848463,-480.0,0.00022191,3]
[379626382,1755349848472,-480.0,0.00022191,3]
[379626383,1755349848484,-479.14191258,0.00022191,3]
[379626384,1755349848493,-828.32,0.00022191,3]
[379626385,1755349848503,-480.0,0.00022191,3]
[379626386,1755349848512,-480.0,0.00022191,3]
[379626387,1755349848521,-676.16,0.00022191,3]
[379626388,1755349848530,-525.0,0.00022191,3]
[379626389,1755349848539,-480.0,0.00022191,3]
[379626390,1755349848549,-441.7022495,0.00022191,3]
[379626391,1755349848559,-480.0,0.00022191,3]
[379626392,1755349848568,-695.38,0.00022191,3]
[379626393,1755349848578,-480.0,0.00022191,3]
[379626394,1755349848588,-480.0,0.00022191,3]
[379626395,1755349848598,-410.87988343,0.00022191,3]
[379626396,1755349848608,-480.0,0.00022191,3]
[379626397,1755349848618,-526.53,0.00022191,3]
[379626398,1755349848627,-480.0,0.00022191,3]
[379626399,1755349848636,-480.0,0.00022191,3]
[379626400,1755349848646,-818.86,0.00022191,3]
[379626401,1755349848656,-480.0,0.00022191,3]
[379626402,1755349848665,-480.0,0.00022191,3]
[379626403,1755349848675,-480.0,0.00022191,3]
[379626404,1755349848684,-480.0,0.00022191,3]
[379626405,1755349848693,-480.0,0.00022191,3]
[379626406,1755349848703,-460.0,0.00022191,3]
[379626407,1755349848713,-480.0,0.00022191,3]
[379626408,1755349848723,-480.0,0.00022191,3]
[379626409,1755349848734,-480.0,0.00022191,3]
[379626410,1755349848745,-526.48,0.00022191,3]
[379626411,1755349848755,-599.24,0.00022191,3]
[379626412,1755349848766,-324.64997532,0.00022191,3]
[379626413,1755349848776,-480.0,0.00022191,3]
[379626414,1755349848786,-440.0,0.00022191,3]
[379626415,1755349848796,-480.0,0.00022191,3]
[379626416,1755349848807,-1338.80984944,0.00022191,3]
[379626417,1755349849063,-128.83230545,0.000206,2]
[379626418,1755349849074,-2836.55005814,0.000206,2]
[379626419,1755349849086,-124.98813299,0.000206,2]
[379626420,1755349849095,-480.0,0.00021917,3]
[379626421,1755349849105,-1275.38015056,0.00022191,3]
[379626422,1755349849115,-480.0,0.00022191,3]
[379626423,1755349849124,-480.0,0.00022191,3]
[379626424,1755349849134,-480.0,0.00022191,3]
[379626425,1755349849143,-480.0,0.00022191,3]
[379626426,1755349849153,-480.0,0.00022191,3]
[379626427,1755349849163,-480.0,0.00022191,3]
[379626428,1755349849171,-220.60155112,0.00022191,3]
[379626429,1755349849182,-480.0,0.00022191,3]
[379626430,1755349849192,-372.93929072,0.00022191,3]
[379626431,1755349849201,-480.0,0.00022191,3]
[379626432,1755349849211,-480.0,0.00022191,3]
[379626433,1755349849224,-480.0,0.00022191,3]
[379626434,1755349849242,-480.0,0.00022191,3]
[379626435,1755349849258,-480.0,0.00022191,3]
[379626436,1755349849270,-480.0,0.00022191,3]
[379626437,1755349849285,-749.15,0.00022191,3]
[379626438,1755349849299,-520.99,0.00022191,3]
[379626439,1755349849316,-416.54355897,0.00022191,3]
[379626440,1755349849331,-480.0,0.00022191,3]
[379626441,1755349849347,-440.0,0.00022191,3]
[379626442,1755349849361,-831.31,0.00022191,3]
[379626443,1755349849374,-480.0,0.00022191,3]
[379626444,1755349849387,-480.0,0.00022191,3]
[379626445,1755349849402,-480.0,0.00022191,3]
[379626446,1755349849416,-480.0,0.00022191,3]
[379626447,1755349849427,-480.0,0.00022191,3]
[379626448,1755349849440,-480.0,0.00022191,3]
[379626449,1755349849455,-480.0,0.00022191,3]
[379626450,1755349849470,-480.0,0.00022191,3]
[379626451,1755349849484,-480.0,0.00022191,3]
[379626452,1755349849500,-480.0,0.00022191,3]
[379626453,1755349849514,-480.0,0.00022191,3]
[379626454,1755349849525,-480.0,0.00022191,3]
[379626455,1755349849536,-480.0,0.00022191,3]
[379626456,1755349849550,-480.0,0.00022191,3]
[379626457,1755349849566,-480.0,0.00022191,3]
[379626458,1755349849578,-480.0,0.00022191,3]
[379626459,1755349849591,-480.0,0.00022191,3]
[379626460,1755349849605,-582.74,0.00022191,3]
[379626461,1755349849617,-440.0,0.00022191,3]
[379626462,1755349849628,-223.66325514,0.00022191,3]
[379626463,1755349849640,-460.0,0.00022191,3]
[379626464,1755349849654,-480.0,0.00022191,3]
[379626465,1755349849666,-489.55,0.00022191,3]
[379626466,1755349849678,-480.0,0.00022191,3]
[379626467,1755349849690,-480.0,0.00022191,3]
[379626468,1755349849702,-480.0,0.00022191,3]
[379626469,1755349849714,-355.6957815,0.00022191,3]
[379626470,1755349849727,-480.0,0.00022191,3]
[379626471,1755349849740,-480.0,0.00022191,3]
[379626472,1755349849752,-480.0,0.00022191,3]
[379626473,1755349849764,-480.0,0.00022191,3]
[379626474,1755349849776,-1531.67,0.00022191,3]
[379626475,1755349849789,-480.0,0.00022191,3]
[379626476,1755349849801,-809.8960425,0.00022191,3]
[379626477,1755349849817,-1144.4039575,0.00022191,3]
[379626478,1755349849829,-480.0,0.00022191,3]
[379626479,1755349849843,-480.0,0.00022191,3]
[379626480,1755349849857,-480.0,0.00022191,3]
[379626481,1755349849869,-480.0,0.00022191,3]
[379626482,1755349849881,-515.89,0.00022191,3]
[379626483,1755349849894,-480.0,0.00022191,3]
[379626484,1755349849907,-480.0,0.00022191,3]
[379626485,1755349849921,-578.77,0.00022191,3]
[379626486,1755349849933,-480.0,0.00022191,3]
[379626487,1755349849945,-480.0,0.00022191,3]
[379626488,1755349849957,-704.72,0.00022191,3]
[379626489,1755349849969,-480.0,0.00022191,3]
[379626490,1755349849981,-448.56262813,0.00022191,3]
[379626491,1755349849993,-593.17,0.00022191,3]
[379626492,1755349850007,-528.15,0.00022191,3]
[379626493,1755349850019,-480.0,0.00022191,3]
[379626494,1755349850031,-336.33341437,0.00022191,3]
[379626495,1755349850047,-143.66658563,0.00022191,3]
[379626496,1755349850059,-250.022823,0.00022191,2]
[379626497,1755349850070,-480.0,0.00022191,3]
[379626498,1755349850082,-480.0,0.00022191,3]
[379626499,1755349850095,-325.55836064,0.00022191,3]
[379626500,1755349850107,-480.0,0.00022191,3]
[379626501,1755349850119,-480.0,0.00022191,3]
[379626502,1755349850132,-480.0,0.00022191,3]
[379626503,1755349850144,-480.0,0.00022191,3]
[379626504,1755349850157,-480.0,0.00022191,3]
[379626505,1755349850170,-480.0,0.00022191,3]
[379626506,1755349850182,-480.0,0.00022191,3]
[379626507,1755349850195,-480.0,0.00022191,3]
[379626508,1755349850206,-480.0,0.00022191,3]
[379626509,1755349850218,-480.0,0.00022191,3]
[379626510,1755349850231,-480.0,0.00022191,3]
[379626511,1755349850244,-460.0,0.00022191,3]
[379626512,1755349850256,-480.0,0.00022191,3]
[379626513,1755349850268,-491.19,0.00022191,3]
[379626514,1755349850277,-707.74,0.00022191,3]
[379626515,1755349850287,-1691.17,0.00022191,3]
[379626516,1755349850299,-480.0,0.00022191,3]
[379626517,1755349850311,-204.78915906,0.00022191,3]
[379626518,1755349850401,-275.21084094,0.00022191,3]
[379626519,1755349850412,-2627.16,0.00022191,3]
[379626520,1755349850423,-440.0,0.00022191,3]
[379626521,1755349850433,-480.0,0.00022191,3]
[379626522,1755349850445,-1336.6,0.00022191,3]
[379626523,1755349850455,-480.0,0.00022191,3]
[379626524,1755349850465,-480.0,0.00022191,3]
[379626525,1755349850474,-480.0,0.00022191,3]
[379626526,1755349850484,-480.0,0.00022191,3]
[379626527,1755349850494,-480.0,0.00022191,3]
[379626528,1755349850503,-480.0,0.00022191,3]